bitfinex/quotes_ETHUSD_20220202
["timestamp","ask_amount","ask_price","bid_price","bid_amount"]
[1643825610432,0.70676931,2679.7,2678.9,6.3663784]
[1643825610633,0.00507305,2679.1,2678.9,6.3663784]
[1643825610833,0.00507305,2679.1,2678.9,5.4331984]
[1643825611033,1.58317904,2679.0,2678.9,5.4331984]
[1643825611935,1.5831711,2679.0,2678.9,5.4331984]
[1643825612786,1.5831711,2679.0,2678.9,0.9331984]
[1643825612990,1.5831711,2679.0,2678.8,0.1865]
[1643825613590,0.15488361,2678.9,2678.8,0.1865]
[1643825613788,1.5831711,2678.9,2678.6,0.00193751]
[1643825613990,1.5831711,2678.8,2678.6,0.00193751]
[1643825614188,1.5831711,2679.2,2678.4,2.05513751]
[1643825614388,3.14312008,2679.3,2678.4,1.87383248]
[1643825614389,0.00519368,2679.0,2678.4,1.87383248]
[1643825614588,1.5831711,2678.9,2678.4,1.87383248]
[1643825615189,1.5831711,2678.9,2678.4,2.59454193]
[1643825615390,1.5831711,2678.9,2678.4,2.5917084]
[1643825615589,1.5831711,2678.8,2678.4,1.87099895]
[1643825615789,2.70537706,2679.1,2678.4,1.87099895]
[1643825615790,1.5831711,2678.7,2678.4,1.87099895]
[1643825615991,0.89326931,2679.3,2678.4,1.87099895]
[1643825615992,1.5831711,2679.0,2678.4,1.87099895]
[1643825616190,1.58340354,2678.9,2678.4,1.87099895]
[1643825616427,2.29017285,2679.2,2678.4,1.86863751]
[1643825616630,1.58340354,2679.1,2678.4,1.87065358]
[1643825616827,0.15425066,2679.0,2678.4,2.55631402]
[1643825617029,1.58340354,2678.9,2678.4,2.55631402]
[1643825617830,1.58871918,2678.9,2678.4,2.55961459]
[1643825618128,1.58340354,2678.8,2678.4,2.55961459]
[1643825618531,1.58340354,2678.8,2678.4,1.87395415]
[1643825619129,1.58340354,2678.8,2678.4,1.87395409]
[1643825619528,1.58229346,2678.8,2678.4,2.61911383]
[1643825620184,1.58229346,2678.8,2678.4,3.55245333]
[1643825621182,1.58229346,2678.8,2678.5,1.86667]
[1643825621381,0.00525471,2678.9,2678.5,0.93334]
[1643825621681,0.00525471,2678.9,2678.6,0.00193751]
[1643825622382,1.09377241,2679.2,2678.6,0.00193751]
[1643825622684,0.00525487,2678.9,2678.6,0.93532751]
[1643825623484,0.1865,2679.2,2678.6,1.86859751]
[1643825623830,0.1865,2679.4,2678.8,0.93323]
[1643825624032,0.00525487,2678.9,2678.8,0.93323]
[1643825624234,0.00525487,2678.9,2678.8,5.25391695]
[1643825624235,5.487e-05,2678.9,2678.8,5.25391695]
[1643825624433,1.41043352,2680.1,2678.9,6.49624599]
[1643825624434,0.1865,2679.9,2678.9,6.49624599]
[1643825624633,0.70950328,2680.2,2679.1,0.99999999]
[1643825624832,1.12708092,2680.5,2679.1,0.99999999]
[1643825624833,0.70676931,2680.4,2679.3,0.93276]
[1643825625030,0.00273397,2680.5,2679.4,0.7255]
[1643825625031,0.70950328,2680.5,2679.4,0.7255]
[1643825625431,0.70950328,2680.5,2680.2,0.18796931]
[1643825625633,0.70950328,2680.7,2680.1,1.48953308]
[1643825625832,0.70950328,2680.7,2680.2,0.539]
[1643825625833,0.00273397,2680.7,2680.2,0.539]
[1643825626233,0.70950328,2681.0,2680.3,0.93274]
[1643825626431,0.00282007,2680.5,2680.4,0.9325946]
[1643825626634,0.01127859,2680.9,2680.5,3.8]
[1643825626832,0.01127859,2680.9,2680.6,2.66319837]
[1643825627031,0.01127859,2680.9,2680.6,0.539]
[1643825627232,0.70676931,2681.2,2680.6,3.3366]
[1643825627432,0.70676931,2681.2,2680.6,1.86508]
[1643825627433,0.70950328,2681.2,2680.6,1.86508]
[1643825627683,0.70950328,2681.2,2680.4,5.39494155]
[1643825627684,0.70676931,2681.1,2680.4,5.39494155]
[1643825627884,0.00273397,2681.2,2680.4,5.39494155]
[1643825627885,0.89326931,2681.0,2680.4,5.39494155]
[1643825628079,0.70950328,2681.0,2680.4,5.39494155]
[1643825628280,0.70950328,2681.0,2680.4,4.6627792]
[1643825628580,0.19222554,2680.9,2680.6,0.93277]
[1643825628780,0.70676931,2681.0,2680.6,0.93277]
[1643825628980,0.1865,2680.9,2680.6,0.93277]
[1643825629179,0.1865,2680.9,2680.1,5.25268979]
[1643825629180,0.89326931,2680.9,2680.1,5.25268979]
[1643825629380,0.70676931,2680.8,2680.1,1.86571]
[1643825629780,0.70676931,2680.8,2680.2,0.86200508]
[1643825629981,0.00565267,2680.6,2680.2,0.86200508]
[1643825631346,0.00565254,2680.6,2680.2,0.86200508]
[1643825632132,0.00273397,2680.8,2680.2,0.86200508]
[1643825632335,0.00565254,2680.6,2680.2,0.86200508]
[1643825632938,0.00838651,2680.6,2680.2,0.86200508]
[1643825633335,0.00273397,2680.6,2680.2,0.86200508]
[1643825633536,0.00565254,2680.6,2680.2,0.86200508]
[1643825634836,0.00546795,2680.6,2680.2,0.86200508]
[1643825635877,0.00546795,2680.6,2679.8,4.2637]
[1643825636078,0.00546795,2680.6,2679.6,3.3879]
[1643825636277,0.89873726,2680.6,2679.6,3.2014]
[1643825636480,0.00273397,2680.5,2679.6,3.2014]
[1643825636878,0.89594076,2680.5,2679.7,0.92718639]
[1643825637178,0.18917145,2680.5,2679.5,0.08871281]
[1643825637379,0.18917145,2680.5,2679.4,0.1865]
[1643825637380,0.89326931,2680.4,2679.4,0.1865]
[1643825637580,1.47492397,2680.3,2679.4,0.1865]
[1643825637779,0.1865,2680.2,2679.3,0.08819997]
[1643825637983,0.7255,2680.2,2679.3,0.08819997]
[1643825638179,0.7255,2680.2,2679.3,0.83459183]
[1643825639631,0.15821038,2680.0,2679.3,0.83459183]
[1643825639832,1.58293427,2679.9,2679.3,0.83459183]
[1643825642034,0.1865,2680.2,2679.3,0.83459183]
[1643825642035,1.58293427,2679.8,2679.3,0.83459183]
[1643825642435,1.58293427,2680.1,2679.3,0.83459183]
[1643825642684,0.1865,2680.2,2679.3,0.83459183]
[1643825642884,0.1865,2680.2,2679.9,3.05590577]
[1643825642885,1.58287247,2680.0,2679.9,3.05590577]
[1643825643086,1.58287247,2680.0,2679.9,2.9]
[1643825643686,0.00273397,2680.5,2679.9,2.9]
[1643825643884,0.00273397,2680.5,2680.0,0.81241595]
[1643825643885,1.58540541,2680.5,2680.0,0.81241595]
[1643825644488,1.58540541,2680.5,2680.0,2.91714162]
[1643825644688,1.58540541,2680.5,2680.1,1.11931]
[1643825644887,1.58267144,2680.5,2680.2,2.66839432]
[1643825645085,0.00510464,2680.6,2680.3,0.1865]
[1643825645286,0.00510464,2680.6,2680.3,0.7255]
[1643825645488,0.0098955,2680.6,2680.5,5.08315612]
[1643825645689,0.00479086,2680.6,2680.5,5.62215612]
[1643825645892,0.00479086,2680.6,2680.5,6.74123612]
[1643825646345,0.00479086,2680.6,2680.5,9.17165243]
[1643825646540,0.00479086,2680.6,2680.5,10.19004998]
[1643825646737,0.00479099,2680.7,2680.5,9.25746998]
[1643825646936,0.00479099,2680.7,2680.6,10.41308458]
[1643825647135,0.00479099,2680.7,2680.6,9.10648254]
[1643825647336,0.00479099,2680.7,2680.6,7.24170014]
[1643825647538,0.00479099,2680.7,2680.6,7.42775014]
[1643825647939,0.00479099,2680.7,2680.6,9.29253014]
[1643825648138,0.005029,2680.8,2680.7,5.85]
[1643825648339,0.005029,2680.8,2680.7,9.74523041]
[1643825648542,0.005029,2680.8,2680.7,10.28423041]
[1643825648840,0.005029,2680.8,2680.7,11.47028041]
[1643825649039,2.9e-05,2680.8,2680.7,11.47028041]
[1643825649340,0.00507893,2680.9,2680.8,0.93227]
[1643825649539,0.00507893,2680.9,2680.8,11.93192824]
[1643825649739,0.00507893,2680.9,2680.8,12.11797824]
[1643825650482,0.00273397,2681.6,2680.9,0.93233]
[1643825650683,0.00273397,2681.6,2681.3,0.94921484]
[1643825650886,0.00273397,2681.8,2681.3,0.94921484]
[1643825651485,0.00273397,2681.8,2681.2,0.19417161]
[1643825651685,1.58468208,2681.6,2681.2,1.01193686]
[1643825652686,0.00273397,2681.6,2681.2,1.01193686]
[1643825652886,0.0054805,2681.5,2681.2,1.01193686]
[1643825653691,0.00273397,2681.6,2681.2,1.01193686]
[1643825653941,0.00548054,2681.5,2681.1,1.86465]
[1643825654141,0.00548054,2681.5,2680.8,3.91605]
[1643825654345,0.00548054,2681.5,2680.6,3.1091]
[1643825654346,1.58212779,2681.4,2680.6,3.1091]
[1643825654541,0.00273397,2681.3,2680.6,3.1091]
[1643825654740,0.00273397,2681.3,2680.5,1.86523]
[1643825654741,0.00273397,2681.3,2680.5,0.93262]
[1643825654940,0.00273397,2681.3,2680.5,1.79664232]
[1643825654941,0.18201857,2681.1,2680.5,1.79664232]
[1643825655146,0.00273397,2681.0,2680.5,1.79664232]
[1643825655542,0.00273397,2681.0,2680.5,0.86402232]
[1643825656348,0.00546595,2680.9,2680.5,0.86402232]
[1643825657244,0.1865,2681.1,2680.5,0.86402232]
[1643825657689,0.00530376,2680.9,2680.5,0.86402232]
[1643825658090,0.15172765,2680.9,2680.5,0.86402232]
[1643825658391,0.00530376,2680.9,2680.5,0.86402232]
[1643825658689,0.00273397,2681.1,2680.5,0.86402232]
[1643825658900,0.00549015,2680.9,2680.5,0.86402232]
[1643825659491,0.00549015,2680.9,2680.5,2.72926232]
[1643825659690,0.00549015,2680.9,2680.7,0.18230565]
[1643825659894,0.0109803,2680.9,2680.7,0.18230565]
[1643825660091,0.00549015,2680.9,2680.7,0.18230565]
[1643825660494,0.00549015,2680.9,2680.8,0.93247]
[1643825660892,0.00273397,2681.4,2680.8,0.93247]
[1643825661196,0.00273397,2681.4,2680.9,2.97169651]
[1643825661450,0.00273397,2681.4,2681.0,1.11833]
[1643825661648,0.02070225,2681.6,2681.0,1.11833]
[1643825661649,0.02343622,2681.6,2681.1,0.539]
[1643825662050,0.00273397,2681.6,2681.1,0.539]
[1643825662246,0.00273397,2681.6,2681.2,0.17225665]
[1643825662450,0.00273397,2681.6,2681.3,1.86444]
[1643825662647,0.00517632,2681.5,2681.3,3.09663]
[1643825662855,0.00517632,2681.5,2681.4,5.73605]
[1643825663150,0.02070217,2681.9,2681.5,5.64329997]
[1643825663151,0.00273397,2681.6,2681.5,5.64329997]
[1643825663351,0.00273397,2681.6,2681.5,9.67343146]
[1643825663550,0.0079102,2681.6,2681.5,9.67343146]
[1643825663749,0.00517623,2681.6,2681.5,9.67343146]
[1643825663953,0.00517623,2681.6,2681.5,10.58479209]
[1643825664150,0.00517623,2681.6,2681.5,12.63494289]
[1643825664551,6.053e-05,2681.7,2681.5,12.63494289]
[1643825664748,6.053e-05,2681.7,2681.6,7.44218815]
[1643825664949,0.00289638,2681.7,2681.6,7.44218815]
[1643825665185,0.00289638,2681.7,2681.6,7.62823815]
[1643825665685,9.638e-05,2681.7,2681.6,8.36016925]
[1643825665891,9.638e-05,2681.7,2681.6,7.64097863]
[1643825666086,0.01134077,2682.3,2681.6,7.64097863]
[1643825666087,0.1864,2682.9,2681.8,0.93197]
[1643825666291,1.41043352,2683.9,2681.8,0.93197]
[1643825666292,0.01,2683.5,2682.5,0.93174]
[1643825666492,1.58098258,2683.4,2682.7,0.93175]
[1643825666693,1.59098258,2683.3,2682.8,0.539]
[1643825666887,2.1862,2683.9,2682.6,0.1862]
[1643825666888,0.01,2683.2,2682.6,0.1862]
[1643825667090,1.76914428,2683.1,2682.6,0.79350887]
[1643825667291,1.59111206,2683.0,2682.6,1.86322]
[1643825667490,1.59111206,2682.9,2682.3,3.1862]
[1643825667692,1.77731206,2682.8,2682.3,3.1862]
[1643825667886,1.58111206,2682.7,2682.3,3.1862]
[1643825668088,0.1962,2682.6,2682.3,3.1862]
[1643825668287,0.1962,2682.6,2682.3,3.0]
[1643825668488,0.00283054,2682.7,2682.3,3.70005931]
[1643825668689,0.1862,2682.6,2682.3,3.70005931]
[1643825668934,1.58145137,2682.5,2682.3,3.70005931]
[1643825669535,1.58145137,2682.5,2682.3,3.69877918]
[1643825669736,1.58145137,2682.5,2682.3,0.70005931]
[1643825669737,0.00283054,2682.5,2682.3,0.70005931]
[1643825670740,0.00805553,2682.5,2682.3,0.70005931]
[1643825670940,0.00522499,2682.5,2682.3,0.70005931]
[1643825671643,0.00522499,2682.5,2682.0,0.8824069]
[1643825672141,0.00530906,2682.5,2682.2,0.00530979]
[1643825672683,0.00530906,2682.5,2682.3,0.7785551]
[1643825673086,0.09170906,2682.8,2682.3,0.7785551]
[1643825673286,1.58142516,2682.7,2682.3,0.7285551]
[1643825673486,0.01,2682.6,2682.3,0.7285551]
[1643825673885,0.09170906,2682.8,2682.3,0.7285551]
[1643825674086,1.58140717,2682.7,2682.3,0.7285551]
[1643825674288,0.01,2682.6,2682.3,0.7285551]
[1643825674685,0.09170906,2682.8,2682.3,0.7285551]
[1643825674885,1.58140557,2682.7,2682.3,0.7285551]
[1643825675085,0.01,2682.6,2682.3,0.7285551]
[1643825675488,0.09170906,2682.8,2682.3,0.7285551]
[1643825675489,0.09170906,2682.8,2682.3,1.6605351]
[1643825675688,0.01219774,2682.9,2682.3,1.6605351]
[1643825675689,0.00564466,2682.6,2682.3,1.6605351]
[1643825676845,0.00518996,2682.6,2682.5,2.50283959]
[1643825677241,0.00518996,2682.6,2682.5,2.35]
[1643825677440,0.00518996,2682.6,2682.3,1.6605351]
[1643825677640,0.00518996,2682.6,2682.3,0.7285551]
[1643825677841,0.01,2683.1,2682.3,0.7285551]
[1643825678043,0.00518998,2682.7,2682.3,0.7285551]
[1643825678445,0.00518998,2682.7,2682.3,0.91479511]
[1643825679044,0.01,2683.1,2682.3,0.91479511]
[1643825679244,0.00519002,2682.6,2682.3,0.7285551]
[1643825679645,0.00519002,2682.6,2682.2,0.00519083]
[1643825680087,1.58146693,2682.5,2682.2,0.00519083]
[1643825680389,1.58146693,2682.5,2682.2,0.01038154]
[1643825680587,3.0,2682.3,2682.2,0.00519071]
[1643825680788,3.0,2682.3,2682.2,0.81591764]
[1643825681687,3.0,2682.3,2682.2,0.81072693]
[1643825683934,4.58149495,2682.3,2682.2,0.81072693]
[1643825684135,3.0,2682.3,2682.2,0.81072693]
[1643825684335,4.58147289,2682.3,2682.2,0.81072693]
[1643825684740,3.0,2682.3,2682.2,0.81072693]
[1643825685035,3.0,2682.3,2682.2,2.91072693]
[1643825685036,4.58148117,2682.3,2682.2,2.91072693]
[1643825685234,4.58144599,2682.3,2682.2,2.91072693]
[1643825685838,3.0,2682.3,2682.2,2.91072693]
[1643825686438,4.58143563,2682.3,2682.2,2.91072693]
[1643825686638,3.0,2682.3,2682.2,2.91072693]
[1643825687438,4.58145319,2682.3,2682.2,2.91072693]
[1643825688288,3.0,2682.3,2682.2,2.91072693]
[1643825688690,4.58144677,2682.3,2682.2,2.91072693]
[1643825689091,3.0,2682.3,2682.2,2.91072693]
[1643825689292,4.58140249,2682.3,2682.2,2.91072693]
[1643825691195,4.58140249,2682.3,2682.2,2.1]
[1643825691436,4.58140249,2682.3,2681.8,3.2862]
[1643825691635,4.58140249,2682.3,2681.7,0.19002021]
[1643825691636,1.58140249,2682.2,2681.7,0.19002021]
[1643825691936,1.58413084,2682.2,2681.8,0.93216]
[1643825692340,1.58413084,2682.2,2681.9,0.93130333]
[1643825692536,1.58140249,2682.2,2681.9,0.93130333]
[1643825696084,1.58140249,2682.2,2681.9,0.93694895]
[1643825696284,3.0,2682.3,2681.9,0.93694895]
[1643825696485,2.95382487,2682.3,2681.9,0.93694895]
[1643825697085,2.95382487,2682.3,2681.9,0.93130333]
[1643825697286,2.95382487,2682.3,2682.0,0.00564558]
[1643825698286,2.95382487,2682.3,2681.9,0.93130333]
[1643825698487,2.95382487,2682.3,2682.0,0.00564564]
[1643825699738,2.95382487,2682.3,2682.0,0.70633189]
[1643825700340,2.92022487,2682.3,2682.0,0.70633189]
[1643825700540,2.92022487,2682.3,2682.0,0.70068625]
[1643825700840,2.92022487,2682.3,2682.0,0.70587754]
[1643825701837,2.92022487,2682.3,2682.0,0.70068625]
[1643825702238,2.92022487,2682.3,2682.0,0.70263017]
[1643825702688,3.10662487,2682.3,2682.0,0.70263017]
[1643825703285,3.10662487,2682.3,2682.0,0.70570156]
[1643825703786,2.92022487,2682.3,2682.0,0.70570156]
[1643825704587,2.92022487,2682.3,2682.0,0.7060318]
[1643825706538,2.92022487,2682.3,2682.0,0.70068625]
[1643825706740,2.92022487,2682.3,2682.0,1.18673625]
[1643825706936,0.00503798,2682.4,2682.2,5.73605]
[1643825707135,0.00503798,2682.4,2682.3,7.02083]
[1643825707136,3.798e-05,2682.4,2682.3,7.02083]
[1643825707341,0.02014836,2682.9,2682.4,5.55]
[1643825707537,0.02014836,2682.9,2682.6,0.92254289]
[1643825707738,4.836e-05,2682.9,2682.7,0.7252]
[1643825707942,0.01,2683.7,2682.8,6.73604999]
[1643825708142,0.0016694,2683.5,2683.0,0.99999999]
[1643825708340,0.0016694,2683.5,2683.2,0.93143]
[1643825708540,0.0016694,2683.5,2683.3,0.7252]
[1643825708739,0.0016694,2684.1,2684.0,0.19152214]
[1643825708939,0.0016694,2684.1,2683.6,0.93147]
[1643825709339,0.70676931,2684.2,2683.6,0.93147]
[1643825709340,0.44902934,2683.8,2683.6,0.93147]
[1643825709542,0.44902934,2683.8,2683.5,1.9565102]
[1643825709740,0.44902934,2683.8,2683.6,0.93152]
[1643825709940,0.44902934,2683.8,2683.3,0.95291527]
[1643825710188,0.45902934,2683.8,2683.3,0.76671527]
[1643825710589,0.45392052,2683.8,2683.3,0.76671527]
[1643825710787,0.45392052,2683.8,2683.3,1.69837527]
[1643825710988,0.45392052,2683.8,2683.3,1.99837527]
[1643825711188,0.45225112,2683.8,2683.3,2.18457527]
[1643825711786,0.00564341,2683.7,2683.3,3.11614527]
[1643825711987,0.00564341,2683.7,2683.4,0.539]
[1643825713190,0.00564341,2683.7,2683.4,0.72505]
[1643825713838,0.00564341,2683.7,2683.6,5.28153]
[1643825714037,0.00564341,2683.7,2683.6,3.5955263]
[1643825714637,0.45467275,2683.7,2683.5,0.18446751]
[1643825714838,0.38188173,2684.3,2684.0,0.67656025]
[1643825715038,0.55818173,2684.3,2684.0,0.67656025]
[1643825715340,0.55818173,2684.3,2683.6,3.08153]
[1643825715536,0.00545465,2683.7,2683.6,3.08153]
[1643825716538,0.00545465,2683.7,2683.6,3.38153]
[1643825716738,0.1863,2684.3,2683.6,3.38153]
[1643825716739,0.1863,2684.3,2683.6,4.01301]
[1643825716941,1.58050235,2684.2,2683.9,0.14467375]
[1643825717139,0.1862,2684.5,2683.6,4.01301]
[1643825717140,1.59050235,2684.1,2683.6,4.01301]
[1643825717341,1.59050235,2684.0,2683.6,4.01301]
[1643825717587,0.1862,2684.5,2683.7,0.88255485]
[1643825717588,1.59050235,2683.9,2683.7,0.88255485]
[1643825717787,1.58050235,2683.8,2683.7,0.88255485]
[1643825718587,1.59050235,2684.1,2683.7,0.88255485]
[1643825718787,1.59050235,2684.0,2683.7,0.88255485]
[1643825718987,1.59050235,2683.9,2683.7,0.88255485]
[1643825719188,0.00545207,2684.2,2683.7,2.90062713]
[1643825719189,0.01,2684.1,2683.7,2.90062713]
[1643825719388,1.58052212,2684.0,2683.7,0.88255485]
[1643825719587,0.00545207,2684.2,2683.7,0.88255485]
[1643825719588,0.01,2683.9,2683.7,0.88255485]
[1643825719791,0.00545207,2684.2,2683.8,2.77310968]
[1643825719988,0.1862,2684.5,2683.9,0.93143]
[1643825719989,1.58050689,2684.1,2683.9,0.93143]
[1643825720189,1.58050689,2684.0,2683.9,0.93143]
[1643825722237,0.01,2684.1,2683.9,0.93143]
[1643825722438,0.00560051,2684.2,2683.9,0.93143]
[1643825722639,1.58047631,2684.1,2683.9,0.88143]
[1643825722838,1.59047631,2684.1,2683.9,0.88143]
[1643825723041,0.01,2684.1,2683.9,0.88143]
[1643825723238,0.00560051,2684.2,2683.9,0.88143]
[1643825723442,1.58050225,2684.1,2683.9,0.88143]
[1643825723638,0.01,2684.3,2683.9,0.88143]
[1643825723838,1.5861497,2684.2,2683.9,0.88707357]
[1643825724038,1.59050691,2684.1,2683.9,0.88707357]
[1643825724239,0.01,2684.1,2683.9,0.88707357]
[1643825724440,1.58055115,2684.0,2683.9,0.00564357]
[1643825724642,0.7123812,2684.2,2683.4,2.04929]
[1643825724643,1.59055115,2684.1,2683.4,2.04929]
[1643825724841,1.59055115,2684.0,2683.4,1.86309]
[1643825725091,1.59055115,2683.9,2683.4,1.86309]
[1643825725291,1.59055115,2683.8,2683.2,3.67425]
[1643825725498,0.71804342,2683.5,2683.1,2.04946]
[1643825725692,0.71804342,2683.5,2683.0,0.97731702]
[1643825725892,0.71804342,2683.5,2683.0,0.79111702]
[1643825726292,0.72077537,2683.5,2683.0,0.79111702]
[1643825726491,0.00273195,2683.5,2683.1,1.8634189]
[1643825726694,0.00273195,2683.5,2683.2,0.0056442]
[1643825726893,1.58352848,2683.8,2683.2,0.0056442]
[1643825727092,0.01,2683.7,2683.2,0.0056442]
[1643825727293,1.58079653,2683.6,2683.2,0.0056442]
[1643825727492,0.01,2683.5,2683.2,0.00472307]
[1643825727691,0.01273195,2683.5,2683.2,0.00472307]
[1643825727892,0.00273195,2683.5,2683.2,0.00472307]
[1643825728292,1.58080004,2683.5,2683.2,0.00472307]
[1643825728492,0.01,2683.4,2683.2,0.00472307]
[1643825728695,0.17842459,2683.6,2683.2,0.00472303]
[1643825728938,1.58079888,2683.5,2683.2,0.00472303]
[1643825729139,1.76699888,2683.5,2683.2,0.00472303]
[1643825729340,1.59079888,2683.4,2683.2,0.00472303]
[1643825729538,1.58079888,2683.3,2683.2,0.00472303]
[1643825730640,1.58079888,2683.3,2682.9,0.1862]
[1643825730841,1.58079888,2683.3,2682.6,4.02034]
[1643825730842,0.01,2683.2,2682.6,4.02034]
[1643825731040,0.01,2683.2,2683.1,0.0048335]
[1643825731248,0.00273195,2683.4,2683.1,0.0048335]
[1643825731640,1.5836625,2683.4,2683.1,0.0048335]
[1643825731841,1.59093055,2683.3,2683.1,0.0048335]
[1643825732041,0.01,2683.3,2683.1,0.0048335]
[1643825732241,0.00273195,2683.4,2683.1,0.0048335]
[1643825732441,0.1862,2683.5,2683.1,0.0048335]
[1643825732688,1.58091788,2683.4,2683.1,0.0048335]
[1643825732888,0.01,2683.3,2683.1,0.0048335]
[1643825733289,0.00273195,2683.4,2683.1,0.0048335]
[1643825733790,1.5936442,2683.4,2683.1,0.0048335]
[1643825733988,1.59091225,2683.3,2683.1,0.0048335]
[1643825734188,1.59091225,2683.3,2682.8,0.93185]
[1643825734189,0.01,2683.3,2682.8,1.71547004]
[1643825734391,0.00273195,2683.4,2682.8,1.71547004]
[1643825734589,1.58361559,2683.4,2683.1,0.0048335]
[1643825734790,0.01,2683.3,2683.1,0.0048335]
[1643825735189,0.00273195,2683.4,2683.1,0.0048335]
[1643825735590,1.58360729,2683.4,2683.1,0.0048335]
[1643825735795,1.59087534,2683.3,2682.8,0.93185]
[1643825735990,1.59091819,2683.2,2682.8,0.93185]
[1643825736369,0.00273195,2683.4,2682.6,0.1862]
[1643825736370,0.01,2683.1,2682.6,0.1862]
[1643825736550,0.00273195,2683.1,2682.6,0.1862]
[1643825737153,0.01273195,2683.3,2682.7,0.75221204]
[1643825737351,1.58089013,2683.2,2682.6,2.18755396]
[1643825737554,0.01,2683.1,2682.8,2.03792025]
[1643825737752,0.00273195,2683.1,2682.8,2.03792025]
[1643825738352,0.18647015,2683.3,2682.7,2.981721]
[1643825738552,1.12935099,2683.3,2682.7,3.82366599]
[1643825738751,0.01,2683.2,2682.7,3.82366599]
[1643825738959,0.01273195,2683.2,2682.7,3.82366599]
[1643825739553,0.01273195,2683.2,2682.8,0.00564452]
[1643825740591,0.00273195,2683.2,2682.8,0.00564452]
[1643825740789,0.93288084,2683.3,2682.9,0.00564448]
[1643825741593,0.94561279,2683.3,2682.7,2.70565499]
[1643825741789,0.94561279,2683.3,2683.0,0.00564439]
[1643825742191,0.94288084,2683.3,2683.0,0.00564439]
[1643825742792,0.94288084,2683.3,2682.9,0.93184]
[1643825742991,1.58086327,2683.2,2682.9,0.93184]
[1643825743192,0.01,2683.1,2682.9,0.93184]
[1643825743393,0.01,2683.1,2682.6,2.04981]
[1643825743594,0.93561279,2683.3,2682.5,3.41591281]
[1643825743595,0.94561279,2683.3,2682.5,3.41591281]
[1643825743841,1.58095898,2683.2,2682.7,0.93193]
[1643825744046,0.01,2683.1,2682.7,0.93193]
[1643825744248,0.01,2683.1,2682.8,0.00543591]
[1643825744445,0.94561279,2683.3,2682.8,0.00543591]
[1643825744647,1.58087048,2683.2,2682.8,0.00543591]
[1643825744844,0.01,2683.1,2682.8,0.00543591]
[1643825745245,0.01,2683.1,2682.7,1.79968528]
[1643825745444,0.01,2683.2,2682.9,0.00543582]
[1643825745647,0.19893195,2683.7,2683.0,0.93182]
[1643825745847,1.58076337,2683.6,2683.0,0.93182]
[1643825746046,0.01,2683.5,2683.0,0.93182]
[1643825746249,0.01273195,2683.5,2683.0,0.93182]
[1643825746447,0.01273195,2683.5,2683.2,0.71028467]
[1643825746448,1.58071003,2683.4,2683.2,0.71028467]
[1643825746648,0.01,2683.4,2683.3,7.49619612]
[1643825746853,0.19706816,2683.8,2683.3,5.48168]
[1643825746854,0.00273195,2683.7,2683.3,5.48168]
[1643825747049,1.58331108,2683.7,2683.4,2.08991596]
[1643825747249,0.01,2683.6,2683.4,2.08991596]
[1643825747446,0.00543425,2683.8,2683.4,2.08991596]
[1643825747693,0.00543425,2683.8,2683.5,1.61363633]
[1643825747995,0.00543425,2683.8,2683.6,1.75789886]
[1643825747996,0.00543453,2683.8,2683.6,1.75789886]
[1643825748194,0.00543453,2683.8,2683.6,2.29689886]
[1643825749194,0.00499617,2683.8,2683.7,7.88315813]
[1643825749395,0.00499617,2683.8,2683.7,9.35354813]
[1643825749792,0.00499617,2683.8,2683.7,9.65354813]
[1643825750192,9.617e-05,2683.8,2683.7,9.65354813]
[1643825750393,0.00499613,2683.9,2683.7,17.38554813]
[1643825750594,9.613e-05,2683.9,2683.8,10.83328263]
[1643825750797,0.01998151,2684.3,2683.8,10.83328263]
[1643825750798,0.01998151,2684.3,2684.2,0.93129387]
[1643825750993,0.01998151,2684.3,2684.2,2.57393637]
[1643825751193,0.01998151,2684.3,2684.2,5.32893977]
[1643825751472,0.01273462,2684.7,2684.2,2.40141387]
[1643825751473,0.00273462,2684.7,2684.2,2.40141387]
[1643825751646,1.58280455,2684.8,2684.2,1.47029387]
[1643825751844,0.01,2684.7,2684.2,0.93129387]
[1643825752046,1.58006993,2684.6,2684.2,0.93129387]
[1643825752242,0.01,2684.5,2684.2,0.93129387]
[1643825752446,2.47030903,2684.4,2684.2,0.93129387]
[1643825752644,2.47030903,2684.4,2683.7,1.1584]
[1643825752645,1.58006993,2684.3,2683.7,1.1584]
[1643825752846,1.58006993,2684.3,2683.8,3.7258]
[1643825752847,0.01,2684.2,2683.8,3.7258]
[1643825753045,1.58006993,2684.1,2683.8,1.8629]
[1643825753446,0.01,2684.0,2683.8,1.8629]
[1643825753645,0.00273462,2684.3,2683.8,1.8629]
[1643825753845,0.93720982,2683.9,2683.6,0.00489714]
[1643825754048,1.58029142,2683.8,2683.6,0.00489663]
[1643825754246,0.01,2683.8,2683.6,0.00489663]
[1643825754450,0.0076304,2684.1,2683.6,0.00489663]
[1643825754652,0.0076304,2684.1,2683.6,0.93644663]
[1643825754845,0.00273462,2684.3,2683.6,0.93155]
[1643825755097,1.58301821,2684.3,2683.6,0.93155]
[1643825755396,0.00489577,2684.0,2683.6,0.93644652]
[1643825755597,0.00489577,2684.0,2683.6,1.86797652]
[1643825755800,0.15490963,2684.0,2683.7,0.93155]
[1643825755999,0.00489577,2684.0,2683.7,0.93155]
[1643825756297,1.58044986,2683.9,2683.6,0.93155]
[1643825756596,0.00489577,2684.0,2683.6,0.93696858]
[1643825756597,0.01,2683.8,2683.6,0.93696858]
[1643825756796,0.00541775,2684.0,2683.6,0.93696858]
[1643825757199,0.00541775,2684.0,2683.6,1.09947771]
[1643825757597,0.00541775,2684.0,2683.6,0.93696858]
[1643825757999,1.58043959,2683.9,2683.6,0.00541858]
[1643825758199,0.01,2683.8,2683.6,0.00541858]
[1643825758396,0.01,2683.8,2683.4,0.75221908]
[1643825758597,0.16927451,2683.8,2683.4,0.75221908]
[1643825758841,0.15927451,2683.8,2683.6,0.00541854]
[1643825759040,1.58051178,2683.7,2683.6,0.00541854]
[1643825759339,1.58051178,2683.7,2683.3,1.86329]
[1643825759540,0.01,2683.6,2683.4,0.93165]
[1643825759745,0.1862,2683.9,2683.6,0.83873661]
[1643825759941,1.58045138,2683.8,2683.6,0.83873661]
[1643825760144,1.593186,2684.0,2683.6,0.83873661]
[1643825760340,1.59044169,2683.9,2683.3,1.86329]
[1643825760542,1.59044169,2683.8,2683.3,1.86329]
[1643825760743,0.01,2683.7,2683.3,1.86329]
[1643825760941,0.00273462,2683.8,2683.4,0.93161]
[1643825761143,1.58316556,2684.0,2683.4,0.93161]
[1643825761342,0.01,2683.9,2683.5,0.73242493]
[1643825761542,1.58043094,2683.8,2683.5,0.73242493]
[1643825761741,0.01,2683.7,2683.5,0.73242493]